Cogmind - Beta 13 @@@ ROGUE MODE // 2024.06.01 @ 15:29:47 Player: CanadianCogs Result: Self-destructed Performance ------------- Evolutions (1) 500 Regions Visited (4) 800 Robots Destroyed (26) 130 Value Destroyed (619) 619 Prototype IDs (3) 60 Alien Tech Used (0) 0 Bonus (215) 215 TOTAL SCORE: 2324 Bonus ------- Follower Combat Kills 215 Cogmind --------- Core Integrity 283/400 Matter 195/300 Energy 280/280 System Corruption 0% Temperature Warning (305) Movement Flying (177) Ox2 Location -9/Storage Parts ------- > --- POWER (1) -------- Cooled Ion Engine > --- PROPULSION (2) --- Improved Flight Unit Improved Flight Unit > --- UTILITY (4) ------ Small Storage Unit Seismic Detector Hacking Suite > --- WEAPON (2) ------- Particle Cannon Particle Cannon > --- INVENTORY (8) ---- Cooled Ion Engine Airjet Improved Heat Sink Advanced Visual Processing Unit Medium Armor Plating Medium Armor Plating Peak State ------------ > --- POWER ------------ Cooled Ion Engine > --- PROPULSION ------- Improved Flight Unit Improved Flight Unit > --- UTILITY ---------- Small Storage Unit Seismic Detector Hacking Suite Hacking Suite > --- WEAPON ----------- Particle Cannon Particle Cannon > --- INVENTORY -------- Cooled Ion Engine Airjet Improved Heat Sink Advanced Visual Processing Unit Medium Armor Plating Medium Armor Plating [Rating: 22] Favorites ----------- Power Ion Engine Engine Ion Engine Propulsion Light Treads Treads Light Treads Flight Unit Improved Flight Unit Utility Small Storage Unit Device Seismic Detector Storage Small Storage Unit Hackware Hacking Suite Weapon Assault Rifle Energy Gun Medium Laser Energy Cannon Particle Cannon Ballistic Gun Assault Rifle Launcher Grenade Launcher Special Melee Weapon Datajack Build | -11 -10 -10 -9 -9 ------- Run | Yrd Mat Min Mat Sto Slots Evolved 2 | . . . 2 . Power . | . . . . . Propulsion . | . . . . . Utility 2 | . . . 2 . Weapon . | . . . . . Parts Attached 24 | 8 4 3 5 4 Power 6 | 1 1 1 1 2 Engine 6 | 1 1 1 1 2 Core . | . . . . . Reactor . | . . . . . Propulsion 4 | 2 . . 2 . Treads 2 | 2 . . . . Leg . | . . . . . Wheel . | . . . . . Hover . | . . . . . Flight 2 | . . . 2 . Utility 6 | 3 1 . 2 . Device 3 | 2 1 . . . Storage 1 | 1 . . . . Processor . | . . . . . Hackware 2 | . . . 2 . Protection . | . . . . . Artifact . | . . . . . Weapon 8 | 2 2 2 . 2 Energy Gun 2 | . 2 . . . Energy Cannon 2 | . . . . 2 Ballistic Gun 2 | 2 . . . . Ballistic Cannon . | . . . . . Launcher 1 | . . 1 . . Special Weapon . | . . . . . Impact Weapon . | . . . . . Slashing Weapon . | . . . . . Piercing Weapon . | . . . . . Special Melee Weapon 1 | . . 1 . . Unidentified Prototypes 3 | . . . 1 2 Parts Lost 4 | . . 1 . 3 Power 1 | . . 1 . . Propulsion . | . . . . . Utility 1 | . . . . 1 Weapon 2 | . . . . 2 Highest Loss Streak 3 | . . 1 . 3 To Critical Strikes . | . . . . . Average Slot Usage (%) 97 | . 98 96 92 96 Engine 11 | . 14 10 5 11 Treads 24 | . 28 28 19 . Flight 2 | . . . 1 22 Device 12 | . 13 14 11 11 Storage 13 | . 14 14 11 11 Hackware 5 | . . . 21 19 Energy Gun 15 | . 19 23 . . Ballistic Gun 4 | . 8 . . . Launcher 2 | . . 2 11 7 Special Melee Weapon 2 | . . 2 11 6 Naked Turns . | . . . . . Heaviest Build 22 | 15 15 15 15 22 Greatest Support 40 | 40 40 40 40 10 Greatest Overweight (x) 2 | . . . 1 2 Average Overweight (x) . | . . . . 1 Largest Inventory Capacity 8 | 8 8 8 8 8 Average Capacity 7 | 7 8 8 8 8 Most Carried 8 | 5 8 8 8 8 Average Carried 5 | 1 6 7 7 7 Final Capacity 8 | 8 8 8 8 8 Final Carried 8 | 2 8 6 8 6 Class Distribution -------------------- 86% | Mutant 13% | Hacker-Mutant Dominant Class ---------------- Mutant | -10/Materials Mutant | -10/Mines Hacker-Mutant | -9/Materials Hacker-Mutant | -9/Storage Resources | -11 -10 -10 -9 -9 ----------- Run | Yrd Mat Min Mat Sto Matter Collected 668 | 418 117 34 99 . Remotely . | . . . . . Salvage Created 768 | 262 147 103 35 221 Parts 47 | 23 10 4 1 9 Haulers Intercepted 1 | . . . 1 . Recyclers Shooed 1 | . 1 . . . Parts Field Recycled . | . . . . . Retrieved Matter . | . . . . . Parts Self-Destructed . | . . . . . Prevented . | . . . . . Kills | -11 -10 -10 -9 -9 ------- Run | Yrd Mat Min Mat Sto Combat Hostiles Destroyed 14 | . 4 3 . 7 Guns 7 | . 4 3 . . Cannons 4 | . . . . 4 AOE 3 | . . . . 3 Classes Destroyed 8 | 2 1 1 1 3 Builder 1 | . . . . 1 Tunneler 9 | 9 . . . . Hauler 1 | . . . 1 . Recycler 1 | 1 . . . . Swarmer 1 | . . 1 . . Grunt 9 | . 4 2 . 3 Brawler 1 | . . . . 1 Sentry 3 | . . . . 3 Best Kill Streak 7 | 4 4 1 1 7 Combat Bots Only 6 | . 4 1 . 6 Max Kills in Single Turn 2 | 2 1 1 1 2 Gunslinging . | . . . . . Exploded 2 | . . . . 2 Melee . | . . . . . Uniques/NPCs Destroyed . | . . . . . Combat | -11 -10 -10 -9 -9 -------- Run | Yrd Mat Min Mat Sto Hostile Shots Fired 104 | . 48 22 4 30 Missed 37 | . 15 10 2 10 Damage Taken 843 | . 365 143 32 303 Core 213 | . 79 17 . 117 Absorbed by Shields . | . . . . . Regen/Repaired (Parts) 4 | . 4 . . . Core Remaining (%) 80 | 100 . 61 . . Volleys Fired 76 | 23 21 13 3 16 Largest 2 | 2 2 2 1 2 Hottest 136 | 40 100 100 30 136 Shots Fired 141 | 46 42 26 3 24 Gun 114 | 46 42 26 . . Cannon 16 | . . . . 16 Launcher 11 | . . . 3 8 Special . | . . . . . Kinetic 82 | 46 36 . . . Thermal 48 | . 6 26 . 16 Explosive 11 | . . . 3 8 Electromagnetic . | . . . . . Robot Hit Streak 11 | 11 3 7 4 6 Robot Miss Streak 4 | 4 3 1 . 2 Penetration Max . | . . . . . Secondary Targets . | . . . . . Shots Hit Robots 87 | 27 24 17 3 16 Core Hits 40 | 11 9 6 1 13 Critical Kills . | . . . . . Critical Parts Destroyed . | . . . . . Critical Strikes 2 | . . 2 . . Burn 2 | . . 2 . . Melee Attacks 1 | . . . 1 . Impact . | . . . . . Slashing . | . . . . . Piercing . | . . . . . Sneak Attacks . | . . . . . Combat Hostiles . | . . . . . Follow-up Attacks . | . . . . . Damage Inflicted 1746 | 360 334 219 84 749 Guns 910 | 360 334 216 . . Cannons 244 | . . . . 244 Explosions 589 | . . . 84 505 Melee . | . . . . . Ramming 3 | . . 3 . . Kinetic 657 | 360 297 . . . Thermal 497 | . 37 216 . 244 Explosive 589 | . . . 84 505 Electromagnetic . | . . . . . Impact . | . . . . . Slashing . | . . . . . Piercing . | . . . . . Highest Corruption . | . . . . . Average Corruption . | . . . . . Corruption Purged . | . . . . . Corruption Blocked . | . . . . . Overload Shots . | . . . . . Overflow Damage . | . . . . . Projectiles . | . . . . . Explosions . | . . . . . Melee . | . . . . . Knockbacks 1 | . . 1 . . Impact 1 | . . 1 . . Kinetic . | . . . . . Secondary . | . . . . . Self-Inflicted Damage 31 | . . . 3 28 Shots 2 | . . . 1 1 Rammed 1 | . . 1 . . Targets Rammed 1 | . . 1 . . Kicked . | . . . . . Crushed . | . . . . . Highest Temperature 375 | . 78 369 21 375 Average Temperature 131 | . 23 139 18 191 Received Heat Transfer 414 | . 198 63 27 126 Effects 1 | . . 1 . . Short Circuit 1 | . . 1 . . Siege Activations . | . . . . . Robots Corrupted . | . . . . . Combat Hostiles . | . . . . . Parts Fried . | . . . . . Impact Corruptions . | . . . . . Robots Melted . | . . . . . Combat Hostiles . | . . . . . Parts Melted 4 | . . 2 . 2 Heat Transferred 1332 | . 111 777 . 444 Parts Sabotaged . | . . . . . Parts Stolen . | . . . . . Parts Stripped . | . . . . . Power Chain Reactions . | . . . . . Alert | -11 -10 -10 -9 -9 ------- Run | Yrd Mat Min Mat Sto Peak Influence 391 | 50 178 161 334 391 Initial 141 | . . 23 62 141 Average 73 | 16 55 89 196 235 Maximum Alert Level 1 | . . . 1 1 Low Security (%) 91 | 100 100 100 48 48 Level 1 8 | . . . 51 51 Level 2 . | . . . . . Level 3 . | . . . . . Level 4 . | . . . . . Level 5 . | . . . . . High Security . | . . . . . Max Security . | . . . . . Squads Dispatched 9 | . 5 1 3 . Investigation 8 | . 4 1 3 . Extermination . | . . . . . Reinforcement 1 | . 1 . . . Assault . | . . . . . Garrison . | . . . . . Intercept . | . . . . . Searches Triggered . | . . . . . Construction Impeded . | . . . . . Haulers Reinforced . | . . . . . Active Scanning Responses . | . . . . . Cargo Convoy Interrupts . | . . . . . Stealth | -11 -10 -10 -9 -9 --------- Run | Yrd Mat Min Mat Sto Distress Signals 1 | . . . 1 . Communications Jammed . | . . . . . Distress Signals . | . . . . . Times Spotted 27 | . 12 5 3 7 Peak Tracking Total 6 | . 5 2 2 6 Tactical Retreats 2 | . 1 . 1 . Traps | -11 -10 -10 -9 -9 ------- Run | Yrd Mat Min Mat Sto Traps Triggered . | . . . . . Indirectly . | . . . . . Trap Hack Attempts . | . . . . . Triggered . | . . . . . Disarmed . | . . . . . Reprogrammed . | . . . . . Reused . | . . . . . Traps Extracted . | . . . . . Installed . | . . . . . Triggered . | . . . . . Machines | -11 -10 -10 -9 -9 ---------- Run | Yrd Mat Min Mat Sto Machines Disabled 3 | . . . 1 2 Max in Single Turn 1 | . . . 1 1 Machines Repaired . | . . . . . Machines Dismantled . | . . . . . Machines Sabotaged . | . . . . . Overloaded Fab Kills . | . . . . . Hacking | -11 -10 -10 -9 -9 --------- Run | Yrd Mat Min Mat Sto Machines Accessed 9 | . 5 1 3 . Terminals 4 | . 2 . 2 . Fabricators . | . . . . . Repair Stations 1 | . 1 . . . Recycling Units 3 | . 2 . 1 . Scanalyzers . | . . . . . Garrison Access . | . . . . . Total Hacks 30 | . 18 1 11 . Successful 20 | . 10 1 9 . Failed 9 | . 8 . 1 . Catastrophic 1 | . 1 . . . Database Lockouts 1 | . . . 1 . Manual 17 | . 11 . 5 1 Terminals 17 | . 9 . 8 . Fabricators . | . . . . . Repair Stations 6 | . 6 . . . Recycling Units 6 | . 3 . 3 . Scanalyzers . | . . . . . Garrison Access . | . . . . . Terminal Hacks 6 | . 1 1 4 . Robot Schematic 2 | . 1 . 1 . Open Door 1 | . . 1 . . Alert Level 1 | . . . 1 . Hauler Manifests 1 | . . . 1 . Zone Layout 1 | . . . 1 . Fabricator Hacks . | . . . . . Repair Station Hacks 4 | . 4 . . . Scan Component 2 | . 2 . . . Repair 2 | . 2 . . . Recycling Unit Hacks 3 | . 1 . 2 . Report Inventory 2 | . 1 . 1 . Retrieve Components 1 | . . . 1 . Scanalyzer . | . . . . . Garrison Access Hacks . | . . . . . Unauthorized Hacks 7 | . 4 . 3 . Terminals 4 | . 2 . 2 . Botnet 4 | . 2 . 2 . Fabricators . | . . . . . Repair Stations . | . . . . . Recycling Units 3 | . 2 . 1 . Tunnel 3 | . 2 . 1 . Scanalyzers . | . . . . . Garrison Access . | . . . . . Data Cores Recovered . | . . . . . Used . | . . . . . Hacking Detections 6 | . 3 . 3 . Full Trace Events 4 | . 2 . 2 . Feedback Events . | . . . . . Feedback Blocked . | . . . . . Robot Schematics Acquired 2 | . 1 . 1 . Robots Built . | . . . . . Authchips . | . . . . . Time . | . . . . . Total Robot Build Rating . | . . . . . Part Schematics Acquired . | . . . . . Parts Built . | . . . . . Authchips . | . . . . . Time . | . . . . . Total Part Build Rating . | . . . . . Parts Repaired 2 | . 2 . . . Time 52 | . 52 . . . Parts Recycled . | . . . . . Recycled Matter . | . . . . . Retrieved Matter . | . . . . . Retrieved Components 3 | . . . 3 . Parts Scanalyzed . | . . . . . Part Schematics Acquired . | . . . . . Parts Damaged . | . . . . . Bothacking | -11 -10 -10 -9 -9 ------------ Run | Yrd Mat Min Mat Sto Used RIF Installer . | . . . . . Robots Hacked . | . . . . . Non-combat . | . . . . . Combat . | . . . . . Robot Hacks Applied . | . . . . . Relay Couplers Released . | . . . . . Fabnet Peak Effective % . | . . . . . Robots Rewired . | . . . . . Allies Hacked . | . . . . . Hacks Repelled . | . . . . . Allies | -11 -10 -10 -9 -9 -------- Run | Yrd Mat Min Mat Sto Total Allies 2 | . . 2 . . Largest Group 2 | . . 2 2 1 Highest-Rated Group 43 | . . 43 43 31 Highest-Rated Ally 31 | . . 31 31 31 Total Orders . | . . . . . Ally Attacks 29 | . . 10 18 1 Total Damage 476 | . . 145 311 20 Kills 10 | . . 3 7 . Allies Corrupted . | . . . . . Allies Melted . | . . . . . Intel | -11 -10 -10 -9 -9 ------- Run | Yrd Mat Min Mat Sto Robot Analysis Total . | . . . . . Derelict Logs Recovered . | . . . . . Drone Launches . | . . . . . Drone Recoveries . | . . . . . Exploration | -11 -10 -10 -9 -9 ------------- Run | Yrd Mat Min Mat Sto Turns Passed 2301 | 768 784 369 266 114 Spaces Moved 710 | 203 187 156 114 50 Core 18 | 18 . . . . Treads 630 | 185 187 156 102 . Legs . | . . . . . Wheels . | . . . . . Hover . | . . . . . Flight 62 | . . . 12 50 Fastest Speed 37 | 50 160 160 107 37 Average Speed 152 | 150 160 160 154 109 Slowest Speed 177 | 160 160 160 160 177 Overloaded Moves . | . . . . . Propulsion Burnouts . | . . . . . Robots Hopped . | . . . . . Cave-ins Triggered . | . . . . . Exploration Rate (%) 20 | 5 30 37 19 9 Regions Visited 4 Branch Regions 2 Pre-discovered Areas 3 | . 2 . 1 . Known Exits Taken . | . . . . . Unknown Exits Taken 4 | 1 1 1 1 . Scrap Searched . | . . . . . Spaces Dug 9 | . . . 9 . Terrain Destroyed 82 | . . . 29 53 Melee . | . . . . . Projectile 2 | . . . . 2 AOE 80 | . . . 29 51 Terrain Rammed . | . . . . . Walls Destroyed . | . . . . . Machines Disabled . | . . . . . Actions | -11 -10 -10 -9 -9 --------- Run | Yrd Mat Min Mat Sto Total 1788 | 620 631 252 200 85 Wait 934 | 377 406 68 72 11 Move 707 | 202 186 156 113 50 Hop . | . . . . . Pick Up 30 | 9 11 5 4 1 Fast Attach 6 | 1 . . 3 2 Attach 17 | 7 3 3 2 2 Detach . | . . . . . Swap 1 | . 1 . . . Drop 16 | 1 3 7 2 3 Fire 76 | 23 21 13 3 16 Melee 1 | . . . 1 . Ram . | . . . . . Kick . | . . . . . Crush . | . . . . . Escape Stasis . | . . . . . Rewire . | . . . . . Trap . | . . . . . Miscellaneous . | . . . . . Route ------- -11/Scrapyard -10/Materials (discovered 2 exits: *Min x2) -10/Mines -9/Materials (discovered 2 exits: *Sto x2) -9/Storage History --------- Turn | Location | Event 22 | -11/Scrapyard | Discovered new exit (range 16) 769 | -11/Scrapyard | Entered Materials 770 | -10/Materials | Build established: Mutant 814 | -10/Materials | Repaired Mining Laser 841 | -10/Materials | Repaired Seismic Detector 1537 | -10/Materials | Discovered new exit (range 11) 1547 | -10/Materials | Discovered new exit (range 16) 1553 | -10/Materials | Entered Mines 1834 | -10/Mines | Discovered new exit (range 12) 1854 | -10/Mines | Met a Derelict shopkeep closing up shop 1922 | -10/Mines | Entered Materials 1922 | -9/Materials | Accompanied by 2 allies 1922 | -9/Materials | Evolved 2 slots: Utility x2 1926 | -9/Materials | Discovered new exit (range 11) 1927 | -9/Materials | Led the pair of lost Derelicts to an unsafe place 1940 | -9/Materials | Central database locked down 2163 | -9/Materials | Discovered new exit (range 9) 2188 | -9/Materials | Entered Storage 2188 | -9/Storage | Accompanied by 1 ally 2250 | -9/Storage | Build established: Hacker-Mutant 2302 | -9/Storage | Self-destructed Last Messages --------------- 02267_ Y-45 Defender destroyed. 02267_ Component Storage disabled. 02269_ U-05 Engineer lays Concrete. 02270_ B-36 Bruiser destroyed. 02272_ U-05 Engineer builds a Wall. 02272_ Hacking Suite destroyed. 02276_ U-05 Engineer lays Concrete. 02277_ The unstable cave ceiling collapses. 02277_ U-05 Engineer lays Concrete. 02278_ Critical hit (Burn: +37). 02278_ U-05 Engineer builds a Wall. 02279_ Y-45 Defender destroyed. 02282_ U-05 Engineer lays Concrete. 02285_ U-05 Engineer builds a Wall. 02289_ U-05 Engineer lays Concrete. 02292_ U-05 Engineer builds a Wall. 02296_ U-05 Engineer destroyed. 02299_ Heat Sink melted. 02299_ Imp. Ion Engine melted. 02299_ Y-45 Defender destroyed. Map ----- +----------------------------------------------------+ | | | | | | | | | | | | | | | | | | | | | | | | | | | | | | | | | | | | | | | ???????????????????????????????????????????????? | | ???????????????????????????????????????????????? | | ???????????????????????????????????????????????? | | ????????#####??????????????????????????????????? | | ???????? ???##############??????????????? | | ??????### ######## # ## #########??????? | | ??? !% @ #??????? | | ??? % = !%%!! % #??????? | | ??? % =%= % #??????? | | ??????### # # [ [## #########??????? | | ???????? # ## ####??????????????? | | ???????? # ##?# T#?????????????????? | | ????????? " "?# #??##" "##?????????????????? | | ????????? ? "???# #???# *!#??????????????????? | | ????????????????# #???#* #??????????????????? | | ????????????????# #???#* *#??????????????????? | | ????????????????# #???#* *#??????????????????? | | ????????????????# #???#####??????????????????? | | ????????????????# #??????????????????????????? | | ???????????????? ??????????????????????????? | | ???????????????? ??????????????????????????? | | ???????????????? ??????????????????????????? | | ???????????????? ??????????????????????????? | | ???????????????????????????????????????????????? | | ???????????????????????????????????????????????? | | ???????????????????????????????????????????????? | | ???????????????????????????????????????????????? | | ???????????????????????????????????????????????? | | ???????????????????????????????????????????????? | | ???????????????????????????????????????????????? | | ???????????????????????????????????????????????? | +----------------------------------------------------+ Best States ------------- Heat Dissipation 28 Energy Generation 14 Energy Capacity 280 Matter Stores 300 Matter Capacity 300 Sight Range 16 Terrain Scan Density 10 Evasion (%) 50 Recoil Reduction 2 Offensive Hacking 20 Item Schematics ----------------- None Robot Schematics ------------------ S-10 Pest | -10/Materials | Hacked G-34 Mercenary | -9/Materials | Hacked Fabricated ------------ Nothing Alien Tech Used ----------------- None Achievements -------------- None Challenges ------------ None Game ------ Seed ThrusterTripodCompactor Manual? 0 Play Time 00:23:37 Cumulative 37.1 hours Start 2024.06.01 @ 15:08:55 End 2024.06.01 @ 15:29:47 Sessions 1 Manual Loads 0 Difficulty Rogue Special Mode None Game No. 64 Rogue 64 Adventurer 0 Explorer 0 Win Type - Total 0 Types 0/0/0/0/0/0/0/0/0 Lore% 21 Gallery% 29 Achievement% 26 Wizard Run 0 Options --------- Layout 0 ASCII 0 Keyboard 0 Movement Mouse Keybinds 0 Fullscreen 2 Font 18/SmallcapsGlow Map View 38x25 Zoom Use 98% Tactical HUD 1 Map Filters NONE Filters NONE Steam 1 RUN: 8f0117f9-a021-4e8e-8159-c4de1d1232f0